[Event "CCT Chessable Masters D-II 2024"]
[Site "Online"]
[Date "2024.02.04"]
[Round "52"]
[White "Yu, Yangyi"]
[Black "Sam_ChessMood"]
[Result "1-0"]
[ECO "B51"]
[WhiteElo "2720"]
[BlackElo "2647"]
[Annotator "ChessBase"]
[PlyCount "65"]
[EventDate "2024.01.12"]
[EventType "k.o."]
[EventCountry "NET"]
[SourceTitle "playchess.com"]
[Source "ChessBase"]
[SourceQuality "1"]
[TimeControl "600+2"]

1. e4 {[%emt 0:00:02]} c5 {[%emt 0:00:04]} 2. Nf3 {[%emt 0:00:02]} d6 {[%emt 0:00:00]} 3. Bb5+ {[%emt 0:00:01]} Nd7 {[%emt 0:00:02]} 4. c4 {[%emt 0:00:05]} Ngf6 {[%emt 0:00:08]} 5. Nc3 {[%emt 0:00:04]} g6 {[%emt 0:00:04]} 6. O-O {[%emt 0:00:05]} Bg7 {[%emt 0:00:02]} 7. d3 {[%emt 0:00:01]} O-O {[%emt 0:00:03]} 8. Ba4 {[%emt 0:00:01]} Ng4 {[%emt 0:00:22]} 9. h3 {[%emt 0:00:10]} Nge5 {[%emt 0:00:05]} 10. Nxe5 {[%emt 0:01:06]} Nxe5 {[%emt 0:00:02]} 11. f4 {[%emt 0:00:01]} Nc6 {[%emt 0:00:03]} 12. Bxc6 {[%emt 0:00:01]} bxc6 {[%emt 0:00:01]} 13. Be3 {[%emt 0:00:44]} f5 {[%emt 0:01:04]} 14. Qd2 {[%emt 0:00:03]} Rb8 {[%emt 0:01:22]} 15. Rae1 {[%emt 0:00:03]} fxe4 {[%emt 0:02:07]} 16. dxe4 {[%emt 0:00:02]} Be6 {[%emt 0:00:01]} 17. b3 {[%emt 0:00:12]} Qa5 {[%emt 0:00:39]} 18. Rc1 {[%emt 0:00:13]} Qb4 {[%emt 0:00:48]} 19. Rf2 {[%emt 0:00:08]} a5 {[%emt 0:00:07]} 20. Qd3 {[%emt 0:00:01]} Kh8 {[%emt 0:00:15]} 21. Kh1 {[%emt 0:00:14]} Rbd8 {[%emt 0:00:12]} 22. Bd2 {[%emt 0:00:10]} Qb7 {[%emt 0:00:08]} 23. Rcf1 {[%emt 0:00:08]} Bg8 {[%emt 0:00:38]} 24. Na4 {[%emt 0:00:23]} d5 {[%emt 0:00:20]} 25. Bc3 {[%emt 0:00:52]} dxc4 {[%emt 0:00:24]} 26. Bxg7+ {[%emt 0:00:04]} Kxg7 {[%emt 0:00:00]} 27. Qc3+ {[%emt 0:00:01]} Rf6 {[%emt 0:00:02]} 28. Nxc5 {[%emt 0:00:43]} Qa7 {[%emt 0:00:42]} 29. Qe5 {[%emt 0:00:06]} cxb3 {[%emt 0:00:07]} 30. axb3 {[%emt 0:00:03]} h6 {[%emt 0:00:51]} 31. f5 {[%emt 0:00:11]} Rdf8 {[%emt 0:00:06]} 32. Rd2 {[%emt 0:00:06]} Qb8 {[%emt 0:00:13]} 33. Qb2 {[%emt 0:00:54]} 1-0

[Event "CCT Chessable Masters D-II 2024"]
[Site "Online"]
[Date "2024.02.04"]
[Round "52"]
[White "Sevian, Samuel"]
[Black "AnishGiri"]
[Result "1-0"]
[ECO "D35"]
[WhiteElo "2697"]
[BlackElo "2739"]
[Annotator "ChessBase"]
[PlyCount "79"]
[EventDate "2024.01.12"]
[EventType "k.o."]
[EventCountry "NET"]
[SourceTitle "playchess.com"]
[Source "ChessBase"]
[SourceQuality "1"]
[TimeControl "600+2"]

1. d4 {[%emt 0:00:02]} Nf6 {[%emt 0:00:06]} 2. c4 {[%emt 0:00:02]} e6 {[%emt 0:00:01]} 3. Nf3 {[%emt 0:00:01]} d5 {[%emt 0:00:00]} 4. Nc3 {[%emt 0:00:02]} Be7 {[%emt 0:00:04]} 5. cxd5 {[%emt 0:00:13]} exd5 {[%emt 0:00:00]} 6. Bf4 {[%emt 0:00:00]} c6 {[%emt 0:00:21]} 7. e3 {[%emt 0:00:01]} Nh5 {[%emt 0:00:02]} 8. Qc2 {[%emt 0:00:03]} Nxf4 {[%emt 0:00:08]} 9. exf4 {[%emt 0:00:00]} Bd6 {[%emt 0:00:39]} 10. g3 {[%emt 0:00:04]} O-O {[%emt 0:00:01]} 11. Bd3 {[%emt 0:01:54]} Re8+ {[%emt 0:00:36]} 12. Kd2 {[%emt 0:00:01]} g6 {[%emt 0:00:43]} 13. Rae1 {[%emt 0:00:24]} Bg4 {[%emt 0:00:08]} 14. Rxe8+ {[%emt 0:00:50]} Qxe8 {[%emt 0:00:00]} 15. Ne5 {[%emt 0:00:00]} Bxe5 {[%emt 0:01:26]} 16. fxe5 {[%emt 0:01:19]} Nd7 {[%emt 0:00:02]} 17. f4 {[%emt 0:00:37]} Rc8 {[%emt 0:00:58]} 18. Qa4 {[%emt 0:00:42]} b5 {[%emt 0:00:37]} 19. Qa6 {[%emt 0:01:06]} Nb6 {[%emt 0:00:11]} 20. Qxa7 {[%emt 0:00:27]} Qd8 {[%emt 0:00:11]} 21. Qa3 {[%emt 0:00:01]} c5 {[%emt 0:00:56]} 22. Nxb5 {[%emt 0:00:09]} c4 {[%emt 0:00:59]} 23. Be2 {[%emt 0:01:04]} Bxe2 {[%emt 0:01:03]} 24. Kxe2 {[%emt 0:00:01]} Qd7 {[%emt 0:00:13]} 25. Nd6 {[%emt 0:00:04]} Ra8 {[%emt 0:00:07]} 26. Qb4 {[%emt 0:00:05]} Na4 {[%emt 0:00:17]} 27. Kf3 {[%emt 0:00:18]} Qa7 {[%emt 0:00:07]} 28. Nb5 {[%emt 0:00:17]} Qb7 {[%emt 0:00:39]} 29. a3 {[%emt 0:00:06]} Qd7 {[%emt 0:00:07]} 30. Nd6 {[%emt 0:00:11]} Kg7 {[%emt 0:00:05]} 31. f5 {[%emt 0:00:11]} gxf5 {[%emt 0:00:02]} 32. Rf1 {[%emt 0:00:01]} f4 {[%emt 0:00:02]} 33. Kg2 {[%emt 0:00:02]} Ra6 {[%emt 0:00:06]} 34. Rxf4 {[%emt 0:00:02]} Rb6 {[%emt 0:00:01]} 35. Nf5+ {[%emt 0:00:08]} Kg6 {[%emt 0:00:04]} 36. Qf8 {[%emt 0:00:08]} Rxb2+ {[%emt 0:00:01]} 37. Kh3 {[%emt 0:00:01]} Qxf5+ {[%emt 0:00:01]} 38. Rxf5 {[%emt 0:00:00]} Kxf5 {[%emt 0:00:00]} 39. Qxf7+ {[%emt 0:00:03]} Ke4 {[%emt 0:00:01]} 40. e6 {[%emt 0:00:01]} 1-0

[Event "CCT Chessable Masters D-II 2024"]
[Site "Online"]
[Date "2024.02.04"]
[Round "52"]
[White "jefferyx"]
[Black "tptagain"]
[Result "1-0"]
[ECO "D31"]
[WhiteElo "2681"]
[BlackElo "2660"]
[Annotator "ChessBase"]
[PlyCount "103"]
[EventDate "2024.01.12"]
[EventType "k.o."]
[EventCountry "NET"]
[SourceTitle "playchess.com"]
[Source "ChessBase"]
[SourceQuality "1"]
[TimeControl "600+2"]

1. d4 {[%emt 0:00:02]} d5 {[%emt 0:00:11]} 2. c4 {[%emt 0:00:02]} e6 {[%emt 0:00:02]} 3. Nc3 {[%emt 0:00:01]} Bb4 {[%emt 0:00:08]} 4. Nf3 {[%emt 0:00:02]} dxc4 {[%emt 0:00:22]} 5. Qa4+ {[%emt 0:01:42]} Nc6 {[%emt 0:00:02]} 6. a3 {[%emt 0:00:01]} Bxc3+ {[%emt 0:00:09]} 7. bxc3 {[%emt 0:00:00]} Qd5 {[%emt 0:00:04]} 8. Bf4 {[%emt 0:00:09]} Nf6 {[%emt 0:00:35]} 9. e3 {[%emt 0:00:41]} b5 {[%emt 0:00:17]} 10. Qc2 {[%emt 0:00:01]} Bb7 {[%emt 0:00:14]} 11. Be2 {[%emt 0:00:11]} Na5 {[%emt 0:00:38]} 12. Bxc7 {[%emt 0:02:42]} Nb3 {[%emt 0:00:03]} 13. Ra2 {[%emt 0:00:17]} O-O {[%emt 0:02:04]} 14. O-O {[%emt 0:00:04]} Ne4 {[%emt 0:01:01]} 15. Rd1 {[%emt 0:00:56]} Qf5 {[%emt 0:00:45]} 16. Bf4 {[%emt 0:00:04]} h6 {[%emt 0:01:02]} 17. Qb2 {[%emt 0:01:24]} f6 {[%emt 0:00:40]} 18. Bg3 {[%emt 0:00:14]} e5 {[%emt 0:00:18]} 19. a4 {[%emt 0:00:23]} a6 {[%emt 0:00:01]} 20. Ra3 {[%emt 0:00:12]} Kh8 {[%emt 0:00:36]} 21. Nh4 {[%emt 0:00:08]} Qg5 {[%emt 0:00:13]} 22. f4 {[%emt 0:00:22]} exf4 {[%emt 0:00:03]} 23. exf4 {[%emt 0:00:00]} Qd5 {[%emt 0:00:05]} 24. Ng6+ {[%emt 0:00:00]} Kh7 {[%emt 0:00:01]} 25. Nxf8+ {[%emt 0:00:01]} Rxf8 {[%emt 0:00:01]} 26. Bf3 {[%emt 0:00:00]} f5 {[%emt 0:00:10]} 27. axb5 {[%emt 0:00:01]} axb5 {[%emt 0:00:01]} 28. Ra7 {[%emt 0:00:00]} Rf7 {[%emt 0:00:30]} 29. Re1 {[%emt 0:00:05]} Bc6 {[%emt 0:00:13]} 30. Bxe4 {[%emt 0:00:20]} fxe4 {[%emt 0:00:01]} 31. Rxf7 {[%emt 0:00:04]} Qxf7 {[%emt 0:00:00]} 32. f5 {[%emt 0:00:03]} Qxf5 {[%emt 0:00:15]} 33. Qf2 {[%emt 0:00:02]} Qxf2+ {[%emt 0:00:08]} 34. Kxf2 {[%emt 0:00:00]} b4 {[%emt 0:00:02]} 35. cxb4 {[%emt 0:00:01]} c3 {[%emt 0:00:02]} 36. d5 {[%emt 0:00:06]} Bxd5 {[%emt 0:00:02]} 37. Bf4 {[%emt 0:00:07]} g5 {[%emt 0:00:07]} 38. Be3 {[%emt 0:00:01]} c2 {[%emt 0:00:03]} 39. b5 {[%emt 0:00:01]} Kg6 {[%emt 0:00:01]} 40. b6 {[%emt 0:00:02]} Kf5 {[%emt 0:00:03]} 41. h4 {[%emt 0:00:01]} gxh4 {[%emt 0:00:05]} 42. Rh1 {[%emt 0:00:01]} Ke6 {[%emt 0:00:02]} 43. Bxh6 {[%emt 0:00:01]} Kd7 {[%emt 0:00:02]} 44. Be3 {[%emt 0:00:08]} Kc6 {[%emt 0:00:02]} 45. Rxh4 {[%emt 0:00:36]} c1=Q {[%emt 0:00:01]} 46. Bxc1 {[%emt 0:00:00]} Nxc1 {[%emt 0:00:00]} 47. Ke3 {[%emt 0:00:01]} Kxb6 {[%emt 0:00:03]} 48. Rxe4 {[%emt 0:00:00]} Bxe4 {[%emt 0:00:01]} 49. Kxe4 {[%emt 0:00:00]} Kc7 {[%emt 0:00:02]} 50. g4 {[%emt 0:00:01]} Kd7 {[%emt 0:00:01]} 51. g5 {[%emt 0:00:01]} Ke7 {[%emt 0:00:02]} 52. g6 {[%emt 0:00:00]} 1-0

[Event "CCT Chessable Masters D-II 2024"]
[Site "Online"]
[Date "2024.02.04"]
[Round "52"]
[White "tptagain"]
[Black "jefferyx"]
[Result "1/2-1/2"]
[ECO "C43"]
[WhiteElo "2659"]
[BlackElo "2682"]
[Annotator "ChessBase"]
[PlyCount "61"]
[EventDate "2024.01.12"]
[EventType "k.o."]
[EventCountry "NET"]
[SourceTitle "playchess.com"]
[Source "ChessBase"]
[SourceQuality "1"]
[TimeControl "600+2"]

1. e4 {[%emt 0:00:04]} e5 {[%emt 0:00:04]} 2. Nf3 {[%emt 0:00:04]} Nf6 {[%emt 0:00:01]} 3. d4 {[%emt 0:00:28]} Nxe4 {[%emt 0:00:03]} 4. Bd3 {[%emt 0:00:03]} d5 {[%emt 0:00:02]} 5. Nxe5 {[%emt 0:00:03]} Nd7 {[%emt 0:00:01]} 6. Nxd7 {[%emt 0:00:34]} Bxd7 {[%emt 0:00:04]} 7. O-O {[%emt 0:00:09]} Be7 {[%emt 0:00:41]} 8. Nd2 {[%emt 0:00:45]} Nf6 {[%emt 0:00:37]} 9. h3 {[%emt 0:00:16]} O-O {[%emt 0:00:52]} 10. Nf3 {[%emt 0:00:07]} c5 {[%emt 0:00:04]} 11. c3 {[%emt 0:00:26]} Qb6 {[%emt 0:00:29]} 12. dxc5 {[%emt 0:00:42]} Bxc5 {[%emt 0:00:02]} 13. b4 {[%emt 0:00:01]} Bd6 {[%emt 0:00:49]} 14. Be3 {[%emt 0:00:04]} Qd8 {[%emt 0:00:02]} 15. Bd4 {[%emt 0:00:13]} Re8 {[%emt 0:00:37]} 16. Qb3 {[%emt 0:00:44]} h6 {[%emt 0:01:18]} 17. Rfe1 {[%emt 0:00:22]} Be6 {[%emt 0:00:02]} 18. Bb5 {[%emt 0:00:17]} Rf8 {[%emt 0:00:04]} 19. Bf1 {[%emt 0:01:06]} Rc8 {[%emt 0:00:14]} 20. Qb2 {[%emt 0:00:10]} a6 {[%emt 0:00:12]} 21. a4 {[%emt 0:00:18]} Re8 {[%emt 0:01:13]} 22. a5 {[%emt 0:00:03]} Bf8 {[%emt 0:00:01]} 23. b5 {[%emt 0:00:06]} Ra8 {[%emt 0:01:20]} 24. bxa6 {[%emt 0:00:30]} bxa6 {[%emt 0:00:00]} 25. Qb6 {[%emt 0:00:43]} Qc8 {[%emt 0:00:05]} 26. Bxf6 {[%emt 0:02:19]} gxf6 {[%emt 0:00:00]} 27. Qd4 {[%emt 0:00:04]} Qc5 {[%emt 0:00:10]} 28. Qd2 {[%emt 0:00:01]} Rec8 {[%emt 0:00:11]} 29. Re3 {[%emt 0:00:03]} Bd6 {[%emt 0:00:13]} 30. Nd4 {[%emt 0:00:12]} Bf4 {[%emt 0:00:09]} 31. Rc1 {[%emt 0:00:01]} 1/2-1/2

[Event "CCT Chessable Masters D-II 2024"]
[Site "Online"]
[Date "2024.02.04"]
[Round "52"]
[White "Mamedov, Rauf"]
[Black "Nakamura, Hikaru"]
[Result "1/2-1/2"]
[ECO "C50"]
[WhiteElo "2651"]
[BlackElo "2788"]
[Annotator "TA"]
[PlyCount "63"]
[EventDate "2024.01.12"]
[EventType "k.o."]
[EventCountry "NET"]
[SourceTitle "playchess.com"]
[Source "ChessBase"]
[SourceQuality "1"]
[TimeControl "600+2"]

{[%evp 11,63,6,10,5,18,7,22,29,25,-13,-25,-36,-30,-39,-35,-35,-16,-16,-24,-39,6,14,27,28,19,25,27,19,20,35,33,8,77,1,2,2,6,6,4,1,1,0,0,0,0,0,0,0,0,0,0,0,0,0]} 1. e4 {[%emt 0:00:06]} e5 {[%emt 0:00:09]} 2. Nf3 {[%emt 0:00:02]} Nc6 {[%emt 0:00:01]} 3. Bc4 {[%emt 0:00:17]} Nf6 {[%emt 0:00:03]} 4. d3 {[%emt 0:00:03]} Bc5 {[%emt 0:00:02]} 5. Nc3 {[%emt 0:00:02]} h6 {[%emt 0:00:12]} 6. Be3 {[%emt 0:00:04]} Bb6 {[%emt 0:00:13]} 7. a4 {[%emt 0:00:05]} d6 {[%emt 0:00:02]} 8. Nd5 {[%emt 0:00:21]} Be6 {[%emt 0:00:45]} 9. Nxb6 {[%emt 0:01:06]} axb6 {[%emt 0:00:00]} 10. Bb5 {[%emt 0:00:03]} O-O {[%emt 0:00:06]} 11. Bxc6 {[%emt 0:00:09]} bxc6 {[%emt 0:00:01]} 12. O-O {[%emt 0:00:03]} c5 {[%emt 0:00:32]} 13. b3 {[%emt 0:00:11]} Bg4 {[%emt 0:00:30]} 14. h3 {[%emt 0:00:06]} Bh5 {[%emt 0:00:02]} 15. Kh2 {[%emt 0:00:33]} d5 {[%emt 0:01:46]} 16. g4 {[%emt 0:00:26]} Bg6 {[%emt 0:00:01]} 17. Nxe5 {[%emt 0:00:32]} dxe4 {[%emt 0:00:01]} 18. Nxg6 {[%emt 0:00:59]} fxg6 {[%emt 0:00:01]} 19. dxe4 {[%emt 0:00:00]} Nxe4 {[%emt 0:00:10]} 20. Qxd8 {[%emt 0:00:08]} Raxd8 {[%emt 0:00:00]} 21. a5 {[%emt 0:00:24]} bxa5 {[%emt 0:00:14]} (21... Ra8 $11) 22. Kg2 {[%emt 0:00:27]} (22. Rxa5 $16 {[%cal Oh2g2]} c4 23. Ra7 (23. bxc4 Nd2 $11)) 22... c4 $11 {[%emt 0:00:16] The position is equal.} 23. Ra4 {[%emt 0:01:26]} Nd2 {[%emt 0:00:09]} 24. Bxd2 {[%emt 0:00:01]} Rxd2 {[%emt 0:00:00]} 25. Rxc4 {[%emt 0:00:01][%mdl 4096] Endgame. KRR-KRR} Rf7 {[%emt 0:00:02]} 26. Rc5 {[%emt 0:00:17]} g5 {[%emt 0:00:12]} 27. Kg3 {[%emt 0:00:02]} Re7 {[%emt 0:00:05]} 28. h4 {[%emt 0:00:45]} gxh4+ {[%emt 0:00:06]} 29. Kxh4 {[%emt 0:00:01]} Ree2 {[%emt 0:00:00][%csl LRc2,LRf2]} 30. Rxc7 {[%emt 0:00:09]} Rxc2 {[%emt 0:00:07]} 31. Rxc2 {[%emt 0:00:08]} Rxc2 {[%emt 0:00:00]} 32. f4 {[%emt 0:00:13] Weighted Error Value: White=0.11 (very precise) /Black=0.12 (very precise) .  Mistake:       	White=1     	Black=1      Inaccurate:     	White=1     	Black=1      OK:         	White=11    	Black=10     Best:        	White=3     	Black=1} 1/2-1/2

[Event "CCT Chessable Masters D-II 2024"]
[Site "Online"]
[Date "2024.02.04"]
[Round "52"]
[White "Sam_ChessMood"]
[Black "Yu, Yangyi"]
[Result "1/2-1/2"]
[ECO "D37"]
[WhiteElo "2645"]
[BlackElo "2720"]
[Annotator "ChessBase"]
[PlyCount "136"]
[EventDate "2024.01.12"]
[EventType "k.o."]
[EventCountry "NET"]
[SourceTitle "playchess.com"]
[Source "ChessBase"]
[SourceQuality "1"]
[TimeControl "600+2"]

1. d4 {[%emt 0:00:06]} Nf6 {[%emt 0:00:04]} 2. c4 {[%emt 0:00:01]} e6 {[%emt 0:00:01]} 3. Nf3 {[%emt 0:00:02]} d5 {[%emt 0:00:02]} 4. Nc3 {[%emt 0:00:02]} Be7 {[%emt 0:00:01]} 5. Bf4 {[%emt 0:00:29]} O-O {[%emt 0:00:01]} 6. e3 {[%emt 0:00:00]} c5 {[%emt 0:00:01]} 7. dxc5 {[%emt 0:00:03]} Bxc5 {[%emt 0:00:00]} 8. Qc2 {[%emt 0:00:14]} Nc6 {[%emt 0:00:03]} 9. Rd1 {[%emt 0:00:06]} Qa5 {[%emt 0:00:06]} 10. a3 {[%emt 0:00:01]} Be7 {[%emt 0:00:29]} 11. Be2 {[%emt 0:01:17]} Ne4 {[%emt 0:00:02]} 12. cxd5 {[%emt 0:00:09]} Nxc3 {[%emt 0:00:03]} 13. bxc3 {[%emt 0:00:50]} exd5 {[%emt 0:00:01]} 14. a4 {[%emt 0:00:19]} Bf6 {[%emt 0:00:37]} 15. O-O {[%emt 0:00:23]} h6 {[%emt 0:00:36]} 16. c4 {[%emt 0:00:42]} Be6 {[%emt 0:00:22]} 17. cxd5 {[%emt 0:00:25]} Bxd5 {[%emt 0:00:01]} 18. Bc7 {[%emt 0:00:34]} Qxc7 {[%emt 0:00:05]} 19. Rxd5 {[%emt 0:00:01]} Rad8 {[%emt 0:00:00]} 20. Rc5 {[%emt 0:00:22]} Rd6 {[%emt 0:01:03]} 21. Rb1 {[%emt 0:00:32]} Rfd8 {[%emt 0:00:10]} 22. g3 {[%emt 0:00:04]} Qe7 {[%emt 0:00:34]} 23. h4 {[%emt 0:00:20]} Rd5 {[%emt 0:00:30]} 24. Rc4 {[%emt 0:00:16]} a5 {[%emt 0:00:40]} 25. Re4 {[%emt 0:00:35]} Qd7 {[%emt 0:00:15]} 26. Qb3 {[%emt 0:00:16]} Nb4 {[%emt 0:00:06]} 27. Rc1 {[%emt 0:00:06]} Nd3 {[%emt 0:00:21]} 28. Rd1 {[%emt 0:00:37]} Nf4 {[%emt 0:01:14]} 29. gxf4 {[%emt 0:00:07]} Rxd1+ {[%emt 0:00:03]} 30. Bxd1 {[%emt 0:00:02]} Qxd1+ {[%emt 0:00:00]} 31. Qxd1 {[%emt 0:00:01]} Rxd1+ {[%emt 0:00:00]} 32. Kg2 {[%emt 0:00:00]} Rd8 {[%emt 0:01:02]} 33. h5 {[%emt 0:00:32]} Rc8 {[%emt 0:01:03]} 34. Ne5 {[%emt 0:00:13]} Bxe5 {[%emt 0:00:17]} 35. fxe5 {[%emt 0:00:23]} Rc5 {[%emt 0:00:12]} 36. f4 {[%emt 0:00:06]} b5 {[%emt 0:00:04]} 37. axb5 {[%emt 0:00:02]} Rxb5 {[%emt 0:00:01]} 38. Rc4 {[%emt 0:00:03]} Rb8 {[%emt 0:00:02]} 39. Ra4 {[%emt 0:00:06]} Ra8 {[%emt 0:00:01]} 40. Kf3 {[%emt 0:00:01]} Kf8 {[%emt 0:00:19]} 41. f5 {[%emt 0:00:06]} Ke7 {[%emt 0:00:02]} 42. Ke4 {[%emt 0:00:01]} Ra7 {[%emt 0:00:08]} 43. Kd5 {[%emt 0:00:01]} Ra8 {[%emt 0:00:16]} 44. Kc6 {[%emt 0:00:07]} Rc8+ {[%emt 0:00:09]} 45. Kd5 {[%emt 0:00:02]} Rd8+ {[%emt 0:00:03]} 46. Kc5 {[%emt 0:00:12]} Rc8+ {[%emt 0:00:02]} 47. Kb6 {[%emt 0:00:15]} Rb8+ {[%emt 0:00:03]} 48. Kxa5 {[%emt 0:00:17]} Ra8+ {[%emt 0:00:10]} 49. Kb5 {[%emt 0:00:01]} Rxa4 {[%emt 0:00:00]} 50. Kxa4 {[%emt 0:00:00]} g5 {[%emt 0:00:03]} 51. fxg6 {[%emt 0:00:04]} fxg6 {[%emt 0:00:00]} 52. hxg6 {[%emt 0:00:01]} h5 {[%emt 0:00:00]} 53. Kb5 {[%emt 0:00:04]} h4 {[%emt 0:00:01]} 54. g7 {[%emt 0:00:04]} Kf7 {[%emt 0:00:01]} 55. Kc6 {[%emt 0:00:01]} h3 {[%emt 0:00:03]} 56. Kd7 {[%emt 0:00:05]} h2 {[%emt 0:00:03]} 57. e6+ {[%emt 0:00:01]} Kxg7 {[%emt 0:00:01]} 58. e7 {[%emt 0:00:00]} h1=Q {[%emt 0:00:01]} 59. e8=Q {[%emt 0:00:01]} Qd5+ {[%emt 0:00:03]} 60. Kc7 {[%emt 0:00:01]} Qc5+ {[%emt 0:00:02]} 61. Kb7 {[%emt 0:00:01]} Qd5+ {[%emt 0:00:07]} 62. Kb6 {[%emt 0:00:04]} Qb3+ {[%emt 0:00:08]} 63. Kc5 {[%emt 0:00:04]} Qc3+ {[%emt 0:00:01]} 64. Kd6 {[%emt 0:00:03]} Qd3+ {[%emt 0:00:02]} 65. Kc7 {[%emt 0:00:01]} Qc3+ {[%emt 0:00:01]} 66. Kb6 {[%emt 0:00:03]} Qb3+ {[%emt 0:00:02]} 67. Ka5 {[%emt 0:00:02]} Qa3+ {[%emt 0:00:01]} 68. Kb6 {[%emt 0:00:01]} Qb3+ {[%emt 0:00:01]} 1/2-1/2

[Event "CCT Chessable Masters D-II 2024"]
[Site "Online"]
[Date "2024.02.04"]
[Round "53"]
[White "AnishGiri"]
[Black "Mamedov, Rauf"]
[Result "1-0"]
[ECO "D30"]
[WhiteElo "2731"]
[BlackElo "2651"]
[Annotator "ChessBase"]
[PlyCount "88"]
[EventDate "2024.01.12"]
[EventType "k.o."]
[EventCountry "NET"]
[SourceTitle "playchess.com"]
[Source "ChessBase"]
[SourceQuality "1"]
[TimeControl "600+2"]

1. d4 {[%emt 0:00:02]} d5 {[%emt 0:00:10]} 2. c4 {[%emt 0:00:01]} e6 {[%emt 0:00:01]} 3. Nf3 {[%emt 0:00:09]} c5 {[%emt 0:00:08]} 4. cxd5 {[%emt 0:00:00]} exd5 {[%emt 0:00:01]} 5. Bg5 {[%emt 0:00:01]} f6 {[%emt 0:00:05]} 6. Bd2 {[%emt 0:00:52]} Nc6 {[%emt 0:00:28]} 7. e3 {[%emt 0:00:23]} Bg4 {[%emt 0:00:55]} 8. Be2 {[%emt 0:00:02]} Bd6 {[%emt 0:00:15]} 9. Nc3 {[%emt 0:00:20]} Nge7 {[%emt 0:00:04]} 10. Nb5 {[%emt 0:00:16]} Bxf3 {[%emt 0:00:31]} 11. Bxf3 {[%emt 0:00:03]} cxd4 {[%emt 0:00:01]} 12. exd4 {[%emt 0:00:23]} Bb8 {[%emt 0:00:12]} 13. O-O {[%emt 0:00:08]} O-O {[%emt 0:00:05]} 14. Be3 {[%emt 0:00:18]} Qd7 {[%emt 0:01:13]} 15. Rc1 {[%emt 0:00:22]} a6 {[%emt 0:01:00]} 16. Nc3 {[%emt 0:00:01]} Ba7 {[%emt 0:00:01]} 17. Na4 {[%emt 0:00:16]} Nf5 {[%emt 0:01:08]} 18. Nc5 {[%emt 0:00:04]} Qf7 {[%emt 0:00:16]} 19. Qd3 {[%emt 0:00:58]} Nh4 {[%emt 0:00:18]} 20. Bd1 {[%emt 0:00:25]} f5 {[%emt 0:00:13]} 21. Bf4 {[%emt 0:01:07]} Ng6 {[%emt 0:00:22]} 22. Bd2 {[%emt 0:00:01]} Rfe8 {[%emt 0:00:25]} 23. Bb3 {[%emt 0:00:05]} Kh8 {[%emt 0:00:18]} 24. Rfe1 {[%emt 0:00:11]} f4 {[%emt 0:00:10]} 25. Rxe8+ {[%emt 0:01:14]} Rxe8 {[%emt 0:00:03]} 26. Ba4 {[%emt 0:00:33]} Rf8 {[%emt 0:01:41]} 27. Bxc6 {[%emt 0:00:09]} bxc6 {[%emt 0:00:01]} 28. Nxa6 {[%emt 0:00:02]} Qb7 {[%emt 0:00:22]} 29. Nb4 {[%emt 0:00:07]} f3 {[%emt 0:00:01]} 30. g3 {[%emt 0:00:16]} Rf6 {[%emt 0:00:18]} 31. a3 {[%emt 0:00:29]} Qd7 {[%emt 0:00:03]} 32. Bg5 {[%emt 0:00:15]} Rf8 {[%emt 0:00:12]} 33. Nxc6 {[%emt 0:00:06]} Bb6 {[%emt 0:00:01]} 34. b4 {[%emt 0:00:12]} h6 {[%emt 0:00:01]} 35. Bd2 {[%emt 0:00:19]} Rf6 {[%emt 0:00:03]} 36. b5 {[%emt 0:00:03]} Bc7 {[%emt 0:00:01]} 37. Re1 {[%emt 0:00:07]} h5 {[%emt 0:00:04]} 38. Bg5 {[%emt 0:00:05]} Rf5 {[%emt 0:00:03]} 39. Ne7 {[%emt 0:00:22]} Rxg5 {[%emt 0:00:01]} 40. Nxg6+ {[%emt 0:00:02]} Kg8 {[%emt 0:00:00]} 41. Ne7+ {[%emt 0:00:07]} Kh8 {[%emt 0:00:04]} 42. Qxf3 {[%emt 0:00:01]} Kh7 {[%emt 0:00:03]} 43. h4 {[%emt 0:00:09]} Rg4 {[%emt 0:00:03]} 44. Qf7 {[%emt 0:00:01]} Kh6 {[%emt 0:00:03]} 1-0

[Event "CCT Chessable Masters D-II 2024"]
[Site "Online"]
[Date "2024.02.04"]
[Round "53"]
[White "Yu, Yangyi"]
[Black "jefferyx"]
[Result "1-0"]
[ECO "B91"]
[WhiteElo "2720"]
[BlackElo "2689"]
[Annotator "ChessBase"]
[PlyCount "107"]
[EventDate "2024.01.12"]
[EventType "k.o."]
[EventCountry "NET"]
[SourceTitle "playchess.com"]
[Source "ChessBase"]
[SourceQuality "1"]
[TimeControl "600+2"]

1. e4 {[%emt 0:00:02]} c5 {[%emt 0:00:03]} 2. Nf3 {[%emt 0:00:02]} d6 {[%emt 0:00:01]} 3. d4 {[%emt 0:00:15]} cxd4 {[%emt 0:00:01]} 4. Nxd4 {[%emt 0:00:00]} Nf6 {[%emt 0:00:01]} 5. Nc3 {[%emt 0:00:01]} a6 {[%emt 0:00:00]} 6. g3 {[%emt 0:00:00]} g6 {[%emt 0:00:13]} 7. Bg2 {[%emt 0:00:02]} Bg7 {[%emt 0:00:01]} 8. h3 {[%emt 0:00:06]} O-O {[%emt 0:00:01]} 9. O-O {[%emt 0:00:03]} Nc6 {[%emt 0:00:01]} 10. Be3 {[%emt 0:00:01]} Bd7 {[%emt 0:00:21]} 11. a4 {[%emt 0:00:09]} Ne5 {[%emt 0:00:52]} 12. Nde2 {[%emt 0:00:52]} Bc6 {[%emt 0:01:54]} 13. b3 {[%emt 0:00:25]} Ned7 {[%emt 0:00:18]} 14. Nd4 {[%emt 0:00:42]} Rc8 {[%emt 0:00:28]} 15. Qd2 {[%emt 0:00:07]} Re8 {[%emt 0:00:10]} 16. Rad1 {[%emt 0:00:04]} Qa5 {[%emt 0:00:05]} 17. Rfe1 {[%emt 0:00:30]} Nc5 {[%emt 0:00:26]} 18. Nxc6 {[%emt 0:01:02]} bxc6 {[%emt 0:00:01]} 19. Nd5 {[%emt 0:00:49]} Qxd2 {[%emt 0:00:05]} 20. Nxf6+ {[%emt 0:00:01]} Bxf6 {[%emt 0:00:51]} 21. Bxd2 {[%emt 0:00:02]} e6 {[%emt 0:00:20]} 22. Bb4 {[%emt 0:00:23]} Be7 {[%emt 0:00:02]} 23. Bf1 {[%emt 0:00:22]} Ra8 {[%emt 0:00:20]} 24. Bxc5 {[%emt 0:00:52]} dxc5 {[%emt 0:00:00]} 25. Rd7 {[%emt 0:00:34]} a5 {[%emt 0:00:01]} 26. e5 {[%emt 0:00:07]} Kf8 {[%emt 0:00:08]} 27. Red1 {[%emt 0:00:20]} Red8 {[%emt 0:00:12]} 28. Be2 {[%emt 0:01:05]} Rxd7 {[%emt 0:01:37]} 29. Rxd7 {[%emt 0:00:00]} Rd8 {[%emt 0:00:01]} 30. Ra7 {[%emt 0:00:04]} Rd2 {[%emt 0:00:01]} 31. Bc4 {[%emt 0:00:02]} Bd8 {[%emt 0:00:17]} 32. c3 {[%emt 0:00:32]} Rc2 {[%emt 0:00:06]} 33. Ra6 {[%emt 0:00:05]} Rxc3 {[%emt 0:00:02]} 34. Rxc6 {[%emt 0:00:01]} g5 {[%emt 0:00:15]} 35. Kg2 {[%emt 0:00:10]} h5 {[%emt 0:00:02]} 36. Rxc5 {[%emt 0:00:31]} Bb6 {[%emt 0:00:15]} 37. Rc8+ {[%emt 0:00:06]} Ke7 {[%emt 0:00:56]} 38. Bxe6 {[%emt 0:00:02]} Bd4 {[%emt 0:00:01]} 39. Bc4 {[%emt 0:00:18]} Bxe5 {[%emt 0:00:18]} 40. Rc5 {[%emt 0:00:01]} f6 {[%emt 0:00:10]} 41. Rxa5 {[%emt 0:00:01]} Rc2 {[%emt 0:00:01]} 42. Rd5 {[%emt 0:00:05]} Bb8 {[%emt 0:00:08]} 43. Bb5 {[%emt 0:00:13]} Bd6 {[%emt 0:00:02]} 44. Bc4 {[%emt 0:00:07]} Bb8 {[%emt 0:00:01]} 45. a5 {[%emt 0:00:05]} Ba7 {[%emt 0:00:01]} 46. Rf5 {[%emt 0:00:00]} g4 {[%emt 0:00:06]} 47. hxg4 {[%emt 0:00:03]} hxg4 {[%emt 0:00:00]} 48. a6 {[%emt 0:00:00]} Bb6 {[%emt 0:00:03]} 49. Kf1 {[%emt 0:00:03]} Ba7 {[%emt 0:00:02]} 50. Rb5 {[%emt 0:00:06]} Kd6 {[%emt 0:00:14]} 51. Rb7 {[%emt 0:00:03]} Rxf2+ {[%emt 0:00:05]} 52. Ke1 {[%emt 0:00:02]} Bd4 {[%emt 0:00:01]} 53. Bb5 {[%emt 0:00:04]} Ra2 {[%emt 0:00:04]} 54. Ba4 {[%emt 0:00:03]} 1-0